bitfinex-derivatives/quotes_BTCF0:USTF0_20250926
["timestamp","ask_amount","ask_price","bid_price","bid_amount"]
[1758847006912,0.9712389,109250.0,109240.0,0.57610202]
[1758847007310,0.87968,109250.0,109240.0,0.57610202]
[1758847009209,0.87968,109250.0,109240.0,0.1516673]
[1758847009410,0.87968,109250.0,109240.0,0.57610202]
[1758847010012,0.9711589,109250.0,109240.0,0.57610202]
[1758847011613,0.87956,109250.0,109240.0,0.57610202]
[1758847012616,0.85676,109250.0,109240.0,0.69456036]
[1758847012812,0.003,109250.0,109240.0,0.78609773]
[1758847013011,0.87952,109250.0,109240.0,0.24320467]
[1758847013213,0.9709989,109250.0,109240.0,0.78609773]
[1758847013920,0.87952,109250.0,109240.0,0.78609773]
[1758847014725,0.87952,109250.0,109240.0,0.60513445]
[1758847016520,0.87747,109250.0,109240.0,0.58613445]
[1758847017318,0.87739,109250.0,109240.0,0.58613445]
[1758847017617,0.85468,109250.0,109240.0,0.98613445]
[1758847017818,0.85368,109250.0,109240.0,0.98613445]
[1758847019517,0.85368,109250.0,109240.0,0.62420467]
[1758847019728,0.85368,109250.0,109240.0,0.98613445]
[1758847020924,0.4749813,109260.0,109250.0,0.1254589]
[1758847021124,1.23707,109260.0,109250.0,0.1254589]
[1758847021525,1.23707,109260.0,109250.0,0.48738868]
[1758847022220,1.23807,109260.0,109250.0,0.48738868]
[1758847022928,1.23807,109260.0,109250.0,0.1254589]
[1758847023228,1.23907,109260.0,109250.0,0.1254589]
[1758847023426,1.23907,109260.0,109250.0,0.48738868]
[1758847023921,1.3305406,109260.0,109250.0,0.03398]
[1758847024228,1.3305406,109260.0,109250.0,0.39590978]
[1758847024725,0.38551,109260.0,109250.0,0.48738888]
[1758847024927,1.3305007,109260.0,109250.0,0.48738888]
[1758847025926,1.23903,109260.0,109250.0,0.48738888]
[1758847027324,0.87823,109260.0,109250.0,0.48738888]
[1758847028630,0.002,109260.0,109250.0,0.57891787]
[1758847028837,0.85548,109260.0,109250.0,0.93971787]
[1758847029229,0.002,109260.0,109250.0,1.40507351]
[1758847029431,0.49369896,109290.0,109280.0,0.1258539]
[1758847029628,1.22985896,109290.0,109280.0,0.48778368]
[1758847029930,0.8748393,109290.0,109280.0,0.48778368]
[1758847030131,1.7282793,109290.0,109280.0,0.48778368]
[1758847030326,1.63683,109290.0,109280.0,0.48778368]
[1758847030522,0.006,109290.0,109280.0,0.58031267]
[1758847030726,0.006,109290.0,109280.0,1.70304245]
[1758847031027,0.64556,109290.0,109280.0,1.70304245]
[1758847031431,0.006,109290.0,109280.0,1.70304245]
[1758847031627,0.4522332,109310.0,109300.0,0.0914372]
[1758847031937,1.3282232,109310.0,109300.0,0.39632978]
[1758847033130,0.1140356,109290.0,109280.0,0.0344]
[1758847033325,1.3357356,109290.0,109280.0,0.38292978]
[1758847033532,1.7357356,109290.0,109280.0,0.0344]
[1758847033836,0.114044,109280.0,109270.0,0.0344]
[1758847034031,0.1271424,109270.0,109260.0,0.08635564]
[1758847034232,0.3608,109280.0,109260.0,0.39632978]
[1758847034432,0.9447424,109270.0,109260.0,0.21737456]
[1758847034629,0.9447424,109270.0,109260.0,0.55428091]
[1758847034934,0.9673324,109270.0,109260.0,0.55428091]
[1758847035327,0.87587,109270.0,109260.0,0.57817456]
[1758847035532,0.85328,109270.0,109260.0,0.6435302]
[1758847036134,0.85328,109270.0,109260.0,0.6485302]
[1758847037033,0.85328,109270.0,109260.0,0.005]
[1758847037034,1.7412224,109270.0,109260.0,0.005]
[1758847037636,2.07812875,109270.0,109260.0,0.005]
[1758847038324,0.0914865,109250.0,109230.0,0.07875564]
[1758847038531,0.87583,109240.0,109230.0,0.09975564]
[1758847038729,1.3281175,109240.0,109230.0,0.12592061]
[1758847038930,1.3281175,109240.0,109230.0,0.20787182]
[1758847039136,1.23663,109240.0,109230.0,0.21741641]
[1758847039539,1.3281175,109240.0,109230.0,0.29936762]
[1758847039838,0.87583,109240.0,109230.0,0.30436762]
[1758847040240,0.02259,109260.0,109250.0,0.1258791]
[1758847040440,0.9673007,109260.0,109250.0,0.19118778]
[1758847040640,0.02259,109260.0,109250.0,0.19118768]
[1758847040828,0.02259,109260.0,109250.0,0.28271667]
[1758847040829,0.85324,109260.0,109250.0,0.28271667]
[1758847041328,0.85324,109260.0,109250.0,0.19123767]
[1758847041329,0.9673006,109260.0,109250.0,0.19123767]
[1758847041533,1.3411906,109260.0,109250.0,0.09970868]
[1758847041734,1.7471906,109260.0,109250.0,0.06530868]
[1758847041935,0.1216091,109250.0,109240.0,0.06530868]
[1758847042141,0.1140774,109240.0,109230.0,0.11635121]
[1758847042440,1.3281174,109240.0,109230.0,0.2078802]
[1758847043242,1.23663,109240.0,109230.0,0.2993761]
[1758847044441,1.23663,109240.0,109230.0,0.3043761]
[1758847044638,0.87583,109240.0,109230.0,0.3043761]
[1758847044845,0.02116,109250.0,109240.0,0.1267375]
[1758847045146,0.85156,109250.0,109240.0,0.46364385]
[1758847045944,0.85156,109250.0,109240.0,0.1267375]
[1758847046345,0.944039,109250.0,109240.0,0.1267375]
[1758847047344,0.85256,109250.0,109240.0,0.20868871]
[1758847047741,0.944039,109250.0,109240.0,0.20868871]
[1758847048044,0.1126474,109240.0,109230.0,0.20830291]
[1758847048249,0.02116,109240.0,109230.0,0.4871517]
[1758847048442,0.9440462,109250.0,109240.0,0.1267374]
[1758847048636,1.3048462,109250.0,109240.0,0.1169217]
[1758847049241,1.3038462,109250.0,109240.0,0.1169217]
[1758847049850,1.3038462,109250.0,109240.0,0.2084092]
[1758847050051,0.4744462,109250.0,109240.0,0.2084092]
[1758847050345,0.001,109250.0,109240.0,0.63685292]
[1758847050538,0.85424,109250.0,109240.0,1.31598122]
[1758847050743,0.001,109250.0,109240.0,1.39765292]
[1758847051547,0.0924791,109250.0,109240.0,0.31094657]
[1758847051745,0.1211791,109250.0,109240.0,0.31094657]
[1758847051948,0.1136391,109250.0,109240.0,0.31094657]
[1758847052145,0.1136391,109250.0,109240.0,0.21945907]
[1758847052554,0.1136391,109250.0,109240.0,0.31094657]
[1758847052851,0.02116,109250.0,109240.0,0.31294657]
[1758847053244,0.1126391,109250.0,109240.0,0.31294657]
[1758847053643,0.1136391,109250.0,109240.0,0.31094657]
[1758847054046,0.1136391,109250.0,109240.0,0.29994657]
[1758847054550,0.1136391,109250.0,109240.0,0.21827487]
[1758847054751,0.1136391,109250.0,109240.0,0.58021609]
[1758847054954,0.1136391,109250.0,109240.0,0.66194485]
[1758847055148,0.001,109250.0,109240.0,0.66194485]
[1758847055345,0.001,109250.0,109240.0,1.05499166]
[1758847055546,0.87536,109250.0,109240.0,1.05499166]
[1758847056246,0.9668391,109250.0,109240.0,0.58021609]
[1758847056441,0.9668391,109250.0,109240.0,0.6619653]
[1758847056645,0.9658391,109250.0,109240.0,0.6639653]
[1758847057249,0.9658391,109250.0,109240.0,0.11899921]
[1758847057250,1.3341791,109250.0,109240.0,0.11899921]
[1758847057447,1.3341791,109250.0,109240.0,0.10520921]
[1758847057951,2.09612032,109250.0,109240.0,0.09474921]
[1758847058148,1.7341791,109250.0,109240.0,0.011]
[1758847058952,0.1126475,109240.0,109230.0,0.11660921]
[1758847059153,0.4734475,109240.0,109230.0,0.11660921]
[1758847059953,0.8865375,109240.0,109230.0,0.08174921]
[1758847060550,0.4865375,109240.0,109230.0,0.08174921]
[1758847060748,0.8865375,109240.0,109230.0,0.08674921]
[1758847061156,1.22366988,109240.0,109230.0,0.005]
[1758847062055,1.22366988,109240.0,109220.0,0.08174921]
[1758847062263,1.67183828,109230.0,109220.0,0.08174921]
[1758847062450,2.14331434,109230.0,109220.0,0.08174921]
[1758847062762,0.1202126,109210.0,109200.0,0.11397557]
[1758847062961,0.112681,109200.0,109190.0,0.14922557]
[1758847063261,0.473481,109200.0,109190.0,0.2407797]
[1758847063760,0.473481,109200.0,109190.0,0.14922557]
[1758847063761,0.479571,109200.0,109190.0,0.14922557]
[1758847063952,0.38196,109200.0,109190.0,0.24075487]
[1758847064253,0.37996,109210.0,109200.0,0.03525]
[1758847064459,0.3608,109220.0,109200.0,0.82470338]
[1758847064659,0.38196,109220.0,109210.0,0.03525]
[1758847064855,1.23532,109220.0,109210.0,0.03525]
[1758847065757,1.3268242,109220.0,109210.0,0.03525]
[1758847066061,0.4744642,109220.0,109210.0,0.03525]
[1758847066246,1.3278642,109220.0,109210.0,0.03525]
[1758847066646,1.3278642,109220.0,109210.0,0.14922557]
[1758847067060,1.3378642,109220.0,109210.0,0.14922557]
[1758847067354,1.3489542,109220.0,109210.0,0.14922557]
[1758847067660,1.3489542,109220.0,109210.0,0.13543557]
[1758847068061,1.3489542,109220.0,109210.0,0.11397557]
[1758847068260,0.1126726,109210.0,109200.0,0.03525]
[1758847068461,0.95139567,109210.0,109200.0,0.03525]
[1758847068966,1.32528567,109210.0,109190.0,0.26905454]
[1758847069262,1.32528567,109210.0,109190.0,0.19899204]
[1758847069263,0.1126809,109200.0,109190.0,0.19899204]
[1758847069563,0.1126809,109200.0,109190.0,0.29052134]
[1758847069860,0.02116,109200.0,109190.0,0.1267793]
[1758847070049,1.3099166,109210.0,109190.0,0.4875793]
[1758847070249,0.9702766,109210.0,109200.0,0.126771]
[1758847070449,1.3310766,109210.0,109200.0,0.126771]
[1758847070656,1.3270766,109210.0,109200.0,0.126771]
[1758847070951,0.1187793,109190.0,109180.0,0.16374204]
[1758847071261,0.1187793,109190.0,109180.0,0.27833725]
[1758847071262,3.88575168,109190.0,109180.0,0.27833725]
[1758847071456,3.88575168,109190.0,109180.0,0.11459521]
[1758847071457,4.28575168,109190.0,109180.0,0.11459521]
[1758847071663,4.28575168,109190.0,109180.0,0.04459521]
[1758847071964,0.0915461,109170.0,109160.0,0.22665465]
[1758847072259,1.6675461,109170.0,109160.0,0.01379]
[1758847072857,2.0675461,109170.0,109160.0,0.01379]
[1758847073162,2.0675461,109170.0,109160.0,0.01679]
[1758847073962,2.0945461,109170.0,109160.0,0.01879]
[1758847074456,2.43167848,109170.0,109160.0,0.01879]
[1758847074662,2.43167848,109170.0,109160.0,0.01579]
[1758847074855,2.43667848,109170.0,109160.0,0.01579]
[1758847075660,2.50890414,109170.0,109160.0,0.01579]
[1758847076160,2.50890414,109170.0,109160.0,0.002]
[1758847076551,2.60604444,109170.0,109160.0,0.002]
[1758847076754,2.60604444,109170.0,109160.0,0.01555]
[1758847076965,2.59672835,109170.0,109160.0,0.01555]
[1758847078061,2.59672835,109170.0,109160.0,0.002]
[1758847078762,2.60589945,109170.0,109160.0,0.002]
[1758847079257,2.60589945,109170.0,109160.0,0.0836137]
[1758847079458,2.60589945,109170.0,109160.0,0.002]
[1758847080365,2.60589945,109170.0,109160.0,0.08362022]
[1758847080750,2.60589945,109170.0,109160.0,0.01355002]
[1758847080957,0.0915544,109160.0,109150.0,0.01379]
[1758847081165,0.87731099,109160.0,109150.0,0.01379]
[1758847081369,0.87731099,109160.0,109140.0,0.12804794]
[1758847081556,3.59335939,109150.0,109140.0,0.12804794]
[1758847082555,3.59335939,109150.0,109140.0,0.01379]
[1758847083666,0.87731939,109150.0,109140.0,0.01379]
[1758847083960,3.61123939,109150.0,109140.0,0.12904794]
[1758847084150,3.61123939,109150.0,109140.0,0.01479]
[1758847093563,1.3276027,109150.0,109140.0,0.43684]
[1758847096572,1.75255929,109150.0,109140.0,0.43684]
[1758847097077,1.75171929,109150.0,109140.0,0.43684]
[1758847099372,1.75171929,109150.0,109140.0,0.41479]
[1758847099571,1.75171929,109150.0,109140.0,0.01479]
[1758847101362,1.3267627,109150.0,109140.0,0.01479]
[1758847101567,1.75171929,109150.0,109140.0,0.01479]
[1758847108586,2.57667588,109150.0,109140.0,0.001]
[1758847108792,2.18244873,109150.0,109140.0,0.001]
[1758847108987,0.091571,109140.0,109130.0,0.01379]
[1758847109186,0.99669502,109140.0,109130.0,0.01379]
[1758847110583,0.462371,109140.0,109130.0,0.03599]
[1758847110784,1.319771,109140.0,109130.0,0.03599]
[1758847110985,0.3708,109140.0,109130.0,0.5275695]
[1758847111184,1.22812,109140.0,109130.0,0.95275513]
[1758847111395,1.22812,109140.0,109130.0,0.5275695]
[1758847111997,1.23,109140.0,109130.0,0.5275695]
[1758847112192,0.3728,109140.0,109130.0,1.04438476]
[1758847112395,0.86904,109140.0,109130.0,1.04438476]
[1758847112599,0.012,109140.0,109130.0,1.40518476]
[1758847112797,0.86904,109140.0,109130.0,1.40518476]
[1758847113100,0.85904,109140.0,109130.0,1.40518476]
[1758847113289,0.87704,109140.0,109130.0,0.98099913]
[1758847113493,0.87704,109140.0,109130.0,1.40618476]
[1758847113689,0.9686111,109140.0,109130.0,0.12861963]
[1758847113904,1.75459673,109140.0,109130.0,0.03699]
[1758847114097,1.3294111,109140.0,109130.0,0.03699]
[1758847115595,0.4723711,109140.0,109130.0,0.03699]
[1758847115791,0.87784,109140.0,109130.0,1.40618476]
[1758847116103,1.3302111,109140.0,109130.0,0.52861963]
[1758847116304,0.9694111,109140.0,109130.0,0.95380526]
[1758847116501,1.3302111,109140.0,109130.0,0.95380526]
[1758847116896,0.9694111,109140.0,109130.0,0.52861963]
[1758847117203,1.3302111,109140.0,109130.0,0.52861963]
[1758847117608,0.9694111,109140.0,109130.0,0.52861963]
[1758847117803,0.9694111,109140.0,109130.0,0.62019913]
[1758847118404,0.87784,109140.0,109130.0,0.62019913]
[1758847118996,0.87784,109140.0,109130.0,1.40618476]
[1758847119396,0.87784,109140.0,109130.0,0.64538476]
[1758847119597,0.9694111,109140.0,109130.0,0.03699]
[1758847119796,0.9694111,109140.0,109130.0,0.1285695]
[1758847120198,0.87776,109140.0,109130.0,0.5285695]
[1758847120400,0.87776,109140.0,109130.0,0.1285695]
[1758847120802,0.87776,109140.0,109130.0,0.55375513]
[1758847121295,0.02,109140.0,109130.0,0.1285695]
[1758847121503,1.3300911,109140.0,109130.0,0.03699]
[1758847122504,1.3300911,109140.0,109130.0,0.1285695]
[1758847123099,1.23852,109140.0,109130.0,0.1285695]
[1758847123302,1.23852,109140.0,109130.0,0.5285695]
[1758847123496,0.87848,109140.0,109130.0,0.95375513]
[1758847124005,0.87848,109140.0,109130.0,0.5285695]
[1758847124205,0.87848,109140.0,109130.0,0.95375513]
[1758847124506,0.87848,109140.0,109130.0,0.5285695]
[1758847125804,1.3308511,109140.0,109130.0,0.03699]
[1758847126703,1.75603673,109140.0,109130.0,0.03699]
[1758847126907,1.75603673,109140.0,109130.0,0.01479]
[1758847127095,2.15603673,109140.0,109130.0,0.01479]
[1758847129109,2.17980551,109140.0,109130.0,0.01479]
[1758847130715,3.1878911,109140.0,109130.0,0.03699]
[1758847132005,3.5878911,109140.0,109130.0,0.03699]
[1758847132209,3.5878911,109140.0,109130.0,0.01479]
[1758847132512,4.01307673,109140.0,109130.0,0.01479]
[1758847135816,3.61307673,109140.0,109130.0,0.01479]
[1758847136512,3.1878911,109140.0,109130.0,0.01479]
[1758847137109,3.1867711,109140.0,109130.0,0.01479]
[1758847137309,0.4723711,109140.0,109130.0,0.03723]
[1758847137517,1.3278911,109140.0,109130.0,0.03723]
[1758847138319,1.66573514,109140.0,109130.0,0.01479]
[1758847138918,1.3278911,109140.0,109130.0,0.01479]
[1758847139321,1.3278911,109140.0,109130.0,0.03723]
[1758847140412,0.4723711,109140.0,109130.0,0.03723]
[1758847140618,1.3284111,109140.0,109130.0,0.03723]
[1758847141716,1.3284111,109140.0,109130.0,0.5288098]
[1758847141717,1.23684,109140.0,109130.0,0.5288098]
[1758847141917,0.87604,109140.0,109130.0,0.5288098]
[1758847143522,0.9676115,109140.0,109130.0,0.43723]
[1758847143724,1.3284115,109140.0,109130.0,0.01479]
[1758847144723,1.66625554,109140.0,109130.0,0.01479]
[1758847145229,1.3284115,109140.0,109130.0,0.01479]
[1758847145525,1.7284115,109140.0,109130.0,0.01479]
[1758847145726,1.7284116,109140.0,109130.0,0.01479]
[1758847145922,1.3284116,109140.0,109130.0,0.03723]
[1758847148229,0.3808,109140.0,109130.0,0.5288099]
[1758847148430,1.18736,109140.0,109130.0,0.5288099]
[1758847148824,1.18736,109140.0,109130.0,0.6106196]
[1758847149220,0.018,109140.0,109130.0,0.6106196]
[1758847149427,0.87344,109140.0,109130.0,1.04009327]
[1758847150129,0.86744,109140.0,109130.0,1.04009327]
[1758847150430,0.86744,109140.0,109130.0,1.04209327]
[1758847150625,0.9590116,109140.0,109130.0,1.04209327]
[1758847151231,0.9590116,109140.0,109130.0,0.70424923]
[1758847151431,0.86744,109140.0,109130.0,0.70424923]
[1758847152432,0.86744,109140.0,109130.0,0.70224923]
[1758847152731,0.86744,109140.0,109130.0,1.04009327]
[1758847152918,0.86744,109140.0,109130.0,1.40089327]
[1758847153122,0.86744,109140.0,109130.0,1.31908357]
[1758847153328,0.86744,109140.0,109130.0,0.03723]
[1758847153329,0.9590116,109140.0,109130.0,0.03723]
[1758847153525,0.9590116,109140.0,109130.0,0.11930268]
[1758847153526,1.3198116,109140.0,109130.0,0.11930268]
[1758847154029,1.3198116,109140.0,109130.0,0.61088268]
[1758847154332,0.86692,109140.0,109130.0,1.31908367]
[1758847157130,0.86692,109140.0,109130.0,0.98123963]
[1758847157331,0.86692,109140.0,109130.0,1.31908367]
[1758847158526,0.9584916,109140.0,109130.0,1.31908367]
[1758847159331,1.3192916,109140.0,109130.0,0.61086609]
[1758847159728,1.3192916,109140.0,109130.0,0.21086609]
[1758847159929,0.86692,109140.0,109130.0,0.30244579]
[1758847160136,0.86692,109140.0,109130.0,0.66324579]
[1758847160429,0.9584913,109140.0,109130.0,0.48965963]
[1758847160630,0.9584913,109140.0,109130.0,0.12885963]
[1758847160832,0.9584913,109140.0,109130.0,0.21086445]
[1758847162533,0.86692,109140.0,109130.0,0.66324415]
[1758847166637,0.86692,109140.0,109130.0,1.00108819]
[1758847168139,0.012,109140.0,109130.0,1.40108819]
[1758847168341,0.86668,109140.0,109130.0,1.31908337]
[1758847168637,0.86668,109140.0,109130.0,1.39117424]
[1758847170129,0.012,109140.0,109130.0,1.39117424]
[1758847171743,0.52457466,109170.0,109160.0,0.01354]
[1758847171948,1.37925466,109170.0,109160.0,0.03681]
[1758847173846,1.38425466,109170.0,109160.0,0.03681]
[1758847174247,1.40425466,109170.0,109160.0,0.04600983]
[1758847174741,0.3858,109170.0,109160.0,0.13756313]
[1758847174942,0.025,109170.0,109160.0,0.92781162]
[1758847175155,0.87964,109170.0,109160.0,1.00985041]
[1758847175843,0.86364,109170.0,109160.0,1.00985041]
[1758847176751,0.86364,109170.0,109160.0,0.64905041]
[1758847176946,0.86364,109170.0,109160.0,0.31120637]
[1758847177151,0.86164,109170.0,109160.0,0.64905041]
[1758847177750,0.953185,109170.0,109160.0,0.55749711]
[1758847177946,0.957185,109170.0,109160.0,0.21965307]
[1758847178356,0.954185,109170.0,109160.0,0.21965307]
[1758847178555,0.956185,109170.0,109160.0,0.21965307]
[1758847180459,0.956185,109170.0,109160.0,0.21045324]
[1758847181258,0.956185,109170.0,109160.0,0.12841445]
[1758847181454,0.956185,109170.0,109160.0,0.03681]
[1758847181958,0.86464,109170.0,109160.0,0.03681]
[1758847182157,0.9561847,109170.0,109160.0,0.03681]
[1758847184059,1.3169847,109170.0,109160.0,0.01354]
[1758847184661,1.3169847,109170.0,109160.0,0.03681]
[1758847185061,1.7169847,109170.0,109160.0,0.03681]
[1758847189062,1.7169847,109170.0,109160.0,0.48133057]
[1758847189259,1.22524,109170.0,109160.0,0.57288357]
[1758847189460,0.8644,109170.0,109160.0,1.41998895]
[1758847189867,0.01,109170.0,109160.0,1.81998895]
[1758847190265,0.79292,109170.0,109160.0,1.81998895]
[1758847190462,0.78292,109170.0,109160.0,1.81998895]
[1758847190670,0.3608,109190.0,109180.0,0.03681]
[1758847190868,1.2152,109190.0,109180.0,0.49082788]
[1758847191169,0.3608,109190.0,109180.0,0.49082788]
[1758847191368,0.8544,109190.0,109180.0,0.49082788]
[1758847191869,0.8564,109190.0,109180.0,0.50023099]
[1758847192569,0.8564,109190.0,109180.0,0.59181866]
[1758847193666,0.8564,109190.0,109180.0,0.66667371]
[1758847193868,0.8564,109190.0,109180.0,1.02747371]
[1758847194068,0.9479276,109190.0,109180.0,0.93593761]
[1758847194563,1.3087276,109190.0,109180.0,0.03681]
[1758847194770,1.67120938,109190.0,109180.0,0.01354]
[1758847194970,2.07120938,109190.0,109180.0,0.01354]
[1758847195662,2.07120938,109190.0,109180.0,0.03571]
[1758847196063,1.2172,109190.0,109180.0,0.39819178]
[1758847196266,0.85628,109190.0,109180.0,0.59040804]
[1758847196574,0.85628,109190.0,109180.0,0.56529158]
[1758847196773,0.85628,109190.0,109180.0,0.22792626]
[1758847196968,0.85628,109190.0,109180.0,0.21883337]
[1758847197169,0.85628,109190.0,109180.0,0.12729767]
[1758847197368,1.3086073,109190.0,109180.0,0.12729767]
[1758847199176,1.3086073,109190.0,109180.0,0.03571]
[1758847199575,1.7086073,109190.0,109180.0,0.03571]
[1758847202075,0.8543273,109190.0,109180.0,0.03571]
[1758847202277,1.7085273,109190.0,109180.0,0.03571]
[1758847203179,1.3085273,109190.0,109180.0,0.03571]
[1758847203479,1.217,109190.0,109180.0,0.1272459]
[1758847203979,1.3085274,109190.0,109180.0,0.03571]
[1758847204683,1.3084874,109190.0,109180.0,0.46033972]
[1758847205379,0.85616,109190.0,109180.0,0.55187542]
[1758847205576,0.002,109190.0,109180.0,1.40426309]
[1758847205775,0.002,109190.0,109180.0,1.48622674]
[1758847206078,0.85616,109190.0,109180.0,1.40426309]
[1758847206375,0.85616,109190.0,109180.0,1.48622674]
[1758847206580,0.002,109190.0,109180.0,1.48622674]
[1758847206778,0.4523145,109210.0,109200.0,0.0915188]
[1758847206779,0.3608,109210.0,109200.0,0.0915188]
[1758847206983,0.4876,109210.0,109200.0,0.55253852]
[1758847207378,0.9399104,109210.0,109200.0,0.12796089]
[1758847207682,0.9399104,109210.0,109200.0,0.03639]
[1758847207881,0.9569104,109210.0,109200.0,0.03639]
[1758847209085,0.9609104,109210.0,109200.0,0.03639]
[1758847209474,0.9609104,109210.0,109200.0,0.1279085]
[1758847209679,0.9609104,109210.0,109200.0,0.03639]
[1758847211182,1.3609104,109210.0,109200.0,0.01354]
[1758847212382,0.8733104,109210.0,109200.0,0.03639]
[1758847212587,0.021,109210.0,109200.0,0.1279075]
[1758847212882,0.021,109210.0,109200.0,1.00490811]
[1758847212883,0.82084,109210.0,109200.0,1.00490811]
[1758847213278,0.82084,109210.0,109200.0,0.58948455]
[1758847213479,0.82084,109210.0,109200.0,1.01411427]
[1758847213676,0.82084,109210.0,109200.0,0.65331427]
[1758847213982,0.865,109210.0,109200.0,0.65331427]
[1758847214585,0.9475128,109210.0,109200.0,0.64410811]
[1758847214885,1.3113128,109210.0,109200.0,0.12796089]
[1758847215484,1.3093128,109210.0,109200.0,0.12796089]
[1758847218488,1.3093128,109210.0,109200.0,0.64411181]
[1758847218880,1.3093128,109210.0,109200.0,0.55259061]
[1758847219889,1.3093128,109210.0,109200.0,0.12796089]
[1758847220093,1.3093128,109210.0,109200.0,0.20992454]
[1758847220589,1.3093128,109210.0,109200.0,0.7532331]
[1758847221295,1.58096708,109210.0,109200.0,0.39000793]
[1758847221591,1.98096708,109210.0,109200.0,0.11835365]
[1758847221783,1.98096708,109210.0,109200.0,0.03639]
[1758847222684,1.98096708,109210.0,109200.0,0.30804428]
[1758847223187,1.98096708,109210.0,109180.0,0.11425794]
[1758847223188,0.0915296,109190.0,109180.0,0.11425794]
[1758847223392,0.0915463,109170.0,109150.0,0.17728204]
[1758847223583,1.48874326,109160.0,109150.0,0.01354]
[1758847223902,2.61034326,109160.0,109150.0,0.01354]
[1758847224693,2.49207306,109160.0,109150.0,0.01354]
[1758847224988,2.48107306,109160.0,109150.0,0.01354]
[1758847225693,0.0915631,109150.0,109140.0,0.01354]
[1758847225989,0.0915715,109140.0,109130.0,0.01354]
[1758847226190,1.73132986,109140.0,109130.0,0.01354]
[1758847226891,1.74065518,109140.0,109130.0,0.01354]
[1758847227390,1.75165518,109140.0,109130.0,0.01354]
[1758847228687,1.75465518,109140.0,109130.0,0.01354]
[1758847229193,0.0915799,109130.0,109120.0,0.01354]
[1758847229384,0.87741826,109130.0,109120.0,0.01354]
[1758847231091,0.88441826,109130.0,109120.0,0.01354]
[1758847231290,0.88441826,109130.0,109120.0,0.12808163]
[1758847231795,0.88541826,109130.0,109120.0,0.12808163]
[1758847232093,0.88541826,109130.0,109120.0,0.01354]
[1758847233093,0.0915846,109120.0,109110.0,0.12835163]
[1758847233293,1.73158296,109120.0,109110.0,0.01381]
[1758847234185,1.73158296,109120.0,109110.0,0.1292668]
[1758847234586,1.73958296,109120.0,109110.0,0.1292668]
[1758847234794,2.13958296,109120.0,109110.0,0.1292668]
[1758847236294,0.88542296,109120.0,109110.0,0.1428068]
[1758847236491,1.3146246,109120.0,109110.0,0.1651668]
[1758847236689,1.73966296,109120.0,109110.0,0.1651668]
[1758847237094,0.4603846,109120.0,109110.0,0.5651668]
[1758847237296,1.3146246,109120.0,109110.0,0.5651668]
[1758847239405,0.3688,109120.0,109110.0,0.2567598]
[1758847239698,0.86232,109120.0,109110.0,0.6567598]
[1758847239898,0.86232,109120.0,109110.0,0.6432198]
[1758847240098,0.86232,109120.0,109110.0,0.6567598]
[1758847240401,0.86232,109120.0,109110.0,0.2567598]
[1758847240695,0.86232,109120.0,109110.0,0.142303]
[1758847242498,0.9539067,109120.0,109110.0,0.142303]
[1758847243604,0.86232,109120.0,109110.0,0.142303]
[1758847244507,0.9539067,109120.0,109110.0,0.142303]
[1758847246102,0.9539067,109120.0,109110.0,0.05071]
[1758847246103,1.37894506,109120.0,109110.0,0.05071]
[1758847246297,1.73974506,109120.0,109110.0,0.05071]
[1758847252314,1.3147067,109120.0,109110.0,0.05071]
[1758847252511,0.2801031,109120.0,109110.0,0.8144064]
[1758847252709,0.86224,109120.0,109110.0,0.8144064]
[1758847253109,1.1343431,109120.0,109110.0,0.92878571]
[1758847253815,0.86224,109120.0,109110.0,0.92878571]
[1758847254222,1.1343431,109120.0,109110.0,0.92878571]
[1758847254521,0.86224,109120.0,109110.0,0.65668261]
[1758847254722,0.86224,109120.0,109110.0,0.5423033]
[1758847257029,0.9538249,109120.0,109110.0,0.5423033]
[1758847257227,0.9538249,109120.0,109110.0,0.63394972]
[1758847257228,0.86224,109120.0,109110.0,0.63394972]
[1758847257727,0.9538249,109120.0,109110.0,0.63394972]
[1758847259023,0.86224,109120.0,109110.0,0.63394972]
[1758847259224,0.008,109120.0,109110.0,0.63394972]
[1758847259426,0.8622,109120.0,109110.0,0.63394972]
[1758847260224,0.008,109120.0,109110.0,0.63394972]
[1758847260430,0.74408,109120.0,109110.0,1.41989185]
[1758847260627,0.74408,109120.0,109110.0,1.3325294]
[1758847261233,0.74408,109120.0,109110.0,0.99474972]
[1758847263634,0.74408,109120.0,109110.0,1.06948427]
[1758847264836,0.008,109120.0,109110.0,1.06948427]
[1758847269941,0.008,109120.0,109110.0,1.05594427]
[1758847270141,0.008,109120.0,109110.0,1.06948427]
[1758847273344,0.008,109120.0,109110.0,1.1514789]
[1758847273638,0.008,109120.0,109110.0,1.48925858]
[1758847273944,1.21464,109140.0,109130.0,0.1273591]
[1758847274843,1.3062107,109140.0,109130.0,0.1273591]
[1758847275143,1.3192107,109140.0,109130.0,0.1273591]
[1758847275444,1.3212107,109140.0,109130.0,0.1273591]
[1758847276241,0.3758,109140.0,109130.0,0.59521769]
[1758847276542,0.015,109140.0,109130.0,1.35601769]
[1758847276843,0.015,109140.0,109130.0,1.44718181]
[1758847277636,0.83005976,109140.0,109130.0,0.23252883]
[1758847277842,0.4673708,109140.0,109130.0,0.23252883]
[1758847278045,0.83005976,109140.0,109130.0,0.03578]
[1758847278238,1.21505976,109140.0,109130.0,0.04778]
[1758847278439,1.21505976,109140.0,109130.0,0.12977463]
[1758847278737,1.21505976,109140.0,109130.0,0.21035383]
[1758847278938,1.21505976,109140.0,109130.0,0.21435383]
[1758847279142,1.21605976,109140.0,109130.0,0.12277463]
[1758847279343,1.21605976,109140.0,109130.0,0.11777463]
[1758847279743,0.8533708,109140.0,109130.0,0.20935373]
[1758847280045,1.21705976,109140.0,109130.0,0.20935373]
[1758847280948,1.21705976,109140.0,109130.0,0.11777463]
[1758847282046,0.8543708,109140.0,109130.0,0.11777463]
[1758847282448,1.21705976,109140.0,109130.0,0.11777463]
[1758847283144,1.21705976,109140.0,109130.0,0.03578]
[1758847284348,1.21705976,109140.0,109130.0,0.1273593]
[1758847284550,0.7628,109140.0,109130.0,0.1273593]
[1758847284746,0.8543709,109140.0,109130.0,0.1273593]
[1758847285249,0.8543709,109140.0,109130.0,0.03578]
[1758847286046,0.8543709,109140.0,109130.0,0.1273593]
[1758847286751,0.8543709,109140.0,109130.0,0.03578]
[1758847289049,1.21705986,109140.0,109130.0,0.03578]
[1758847289852,0.8543709,109140.0,109130.0,0.1273593]
[1758847290047,0.8543709,109140.0,109130.0,0.1408993]